Cogmind - Beta 16 --- EXPLORER MODE // 2026.01.27 @ 09:21:12 Player: K.K.Y. Result: Destroyed by 3I-EG5(R) with Subdweller Beam Cannon Performance ------------- Evolutions (0) 0 Regions Visited (3) 600 Robots Destroyed (44) 220 Value Destroyed (935) 935 Prototype IDs (12) 240 Alien Tech Used (0) 0 Bonus (-112) -112 TOTAL SCORE: 1883 Bonus ------- Friendly Fire -112 Cogmind --------- Core Integrity 0/250 Matter 280/300 Energy 91/100 System Corruption 0% Temperature Cool (9) Movement Treading (250) Ox1 Location -10/Subcaves Parts ------- > --- POWER (1) -------- (None) > --- PROPULSION (2) --- Light Treads Spiked Treads > --- UTILITY (3) ------ Heat Sink High-capacity Storage Unit Structural Scanner > --- WEAPON (2) ------- Medium Laser Medium Laser > --- INVENTORY (20) --- Light Nuclear Core Medium Storage Unit Humpback Trap Scanner Sensor Array Improved Terrain Scanner Advanced Targeting Computer Makeshift Hacking Suite Riot Gun Subdweller Beam Cannon Battle Rifle Battle Rifle Barrage Gun Barrage Gun Barrage Gun Mining Laser Multitool Peak State ------------ > --- POWER ------------ Ion Engine > --- PROPULSION ------- Light Treads Light Treads > --- UTILITY ---------- Heat Sink High-capacity Storage Unit Structural Scanner > --- WEAPON ----------- Medium Laser Mining Laser > --- INVENTORY -------- Light Nuclear Core Light Treads Spiked Treads Medium Storage Unit Humpback Trap Scanner Sensor Array Improved Terrain Scanner Advanced Targeting Computer Makeshift Hacking Suite Riot Gun Medium Laser Medium Laser Medium Laser Subdweller Beam Cannon Battle Rifle Battle Rifle Barrage Gun Multitool [Rating: 12] Favorites ----------- Power Ion Engine Engine Ion Engine Propulsion Light Treads Treads Light Treads Utility Structural Scanner Device Structural Scanner Storage High-capacity Storage Unit Weapon Medium Laser Energy Gun Medium Laser Ballistic Gun Assault Rifle Special Weapon Mining Laser Build | -11 -10 -10 -10 ------- Run | Yrd Mat Min Sub Slots Evolved 1 | . 1 . . Power . | . . . . Propulsion . | . . . . Utility 1 | . 1 . . Weapon . | . . . . Parts Attached 20 | 5 7 1 7 Power 2 | 1 1 . . Engine 2 | 1 1 . . Core . | . . . . Reactor . | . . . . Propulsion 5 | 2 . . 3 Treads 5 | 2 . . 3 Leg . | . . . . Wheel . | . . . . Hover . | . . . . Flight . | . . . . Utility 5 | . 3 1 1 Device 3 | . 2 . 1 Storage 2 | . 1 1 . Processor . | . . . . Hackware . | . . . . Protection . | . . . . Artifact . | . . . . Weapon 8 | 2 3 . 3 Energy Gun 5 | . 2 . 3 Energy Cannon . | . . . . Ballistic Gun 2 | 2 . . . Ballistic Cannon . | . . . . Launcher . | . . . . Special Weapon 1 | . 1 . . Impact Weapon . | . . . . Slashing Weapon . | . . . . Piercing Weapon . | . . . . Special Melee Weapon . | . . . . Unidentified Prototypes . | . . . . Parts Lost 8 | . . . 8 Power 1 | . . . 1 Propulsion 3 | . . . 3 Utility 1 | . . . 1 Weapon 3 | . . . 3 Highest Loss Streak 2 | . . . 2 To Critical Strikes . | . . . . Average Backups 12 | 1 5 11 16 Power . | . . 1 1 Propulsion 1 | . . 2 1 Utility 5 | . 2 4 6 Weapon 5 | . 1 4 6 Tool/Special . | . . . . Unused Backups 17 | . . . 17 Power 1 | . . . 1 Propulsion . | . . . . Utility 6 | . . . 6 Weapon 8 | . . . 8 Tool/Special 2 | . . . 2 Average Slot Usage (%) 92 | . 88 100 91 Engine 10 | . 12 12 10 Treads 23 | . 25 25 22 Device 21 | . 20 25 21 Storage 10 | . 5 12 12 Energy Gun 18 | . 15 25 18 Ballistic Gun 2 | . 9 . . Special Weapon 3 | . . . 6 Peak Build Rating 12 | 5 10 11 12 Average Rating 10 | 3 8 10 10 On Entrance 6 | . 5 10 11 Avg Prop Armor Cover (%) . | . . . . Naked Turns . | . . . . Heaviest Build 52 | 8 52 52 52 Greatest Support 40 | 40 40 40 40 Greatest Overweight (x) 2 | . 1 1 2 Average Overweight (x) . | . . 1 1 Largest Inventory Capacity 20 | 5 20 20 20 Average Capacity 18 | 5 12 20 20 Most Carried 20 | 3 11 14 20 Average Carried 13 | 1 6 12 17 Final Capacity 20 | 5 20 20 20 Final Carried 18 | 2 11 14 18 Class Distribution -------------------- 100% | Hacker-Mutant Dominant Class ---------------- Hacker-Mutant | -10/Materials Hacker-Mutant | -10/Mines Hacker-Mutant | -10/Subcaves Resources | -11 -10 -10 -10 ----------- Run | Yrd Mat Min Sub Matter Collected 617 | 266 219 22 110 Remotely . | . . . . Salvage Created 1273 | 124 452 94 603 Parts 95 | 7 43 7 38 Haulers Intercepted 2 | . 2 . . Recyclers Shooed . | . . . . Parts Field Recycled . | . . . . Retrieved Matter . | . . . . Parts Self-Destructed . | . . . . Prevented . | . . . . Parts Restored . | . . . . Kills | -11 -10 -10 -10 ------- Run | Yrd Mat Min Sub Combat Hostiles Destroyed 31 | . 9 5 17 Guns 30 | . 9 5 16 Classes Destroyed 11 | 2 7 . 2 Worker 1 | . 1 . . Builder 3 | . 3 . . Tunneler 1 | 1 . . . Hauler 2 | . 2 . . Recycler 1 | 1 . . . Turret 2 | . . . 2 Watcher 3 | . 3 . . Swarmer 15 | . 4 4 7 Grunt 4 | . 2 1 1 Sentry 1 | . . . 1 Subdweller 11 | . 3 . 8 Best Kill Streak 4 | 2 3 2 4 Combat Bots Only 4 | . 3 2 4 Max Kills in Single Turn 2 | 1 2 1 1 Gunslinging 1 | . 1 . . Exploded . | . . . . Melee . | . . . . Uniques/NPCs Destroyed . | . . . . Combat | -11 -10 -10 -10 -------- Run | Yrd Mat Min Sub Hostile Shots Fired 207 | . 41 28 138 Missed 68 | . 15 9 44 Hits 139 | . 26 19 94 Projectile 139 | . 26 19 94 Critical Strikes 5 | . 1 . 4 Damage Taken 1189 | . 294 101 794 Core 266 | . 78 8 180 Absorbed by Shields . | . . . . Ignored by Resistances 739 | . 175 71 493 Core Remaining (%) 100 | 100 . . . Volleys Fired 158 | 4 45 14 95 Largest 2 | 2 2 2 2 Hottest 150 | 40 150 115 150 Shots Fired 313 | 8 88 28 189 Gun 281 | 8 87 28 158 Cannon . | . . . . Launcher . | . . . . Special 32 | . 1 . 31 Kinetic 55 | 8 47 . . Thermal 258 | . 41 28 189 Explosive . | . . . . Electromagnetic . | . . . . Robot Hit Streak 44 | 2 44 14 39 Robot Miss Streak 3 | 1 1 2 3 Penetration Max . | . . . . Secondary Targets 5 | . 3 . 2 Max Gunslinging Chain 1 | . 1 . 1 Shots Hit Robots 208 | 5 72 22 109 Core Hits 70 | 3 25 8 34 Critical Kills . | . . . . Critical Parts Destroyed . | . . . . Critical Strikes 14 | . 2 2 10 Burn 14 | . 2 2 10 Melee Attacks . | . . . . Impact . | . . . . Slashing . | . . . . Piercing . | . . . . Sneak Attacks . | . . . . Combat Hostiles . | . . . . Follow-up Attacks . | . . . . Damage Inflicted 2711 | 51 992 307 1361 Guns 2711 | 51 992 307 1361 Cannons . | . . . . Explosions . | . . . . Melee . | . . . . Ramming . | . . . . Kinetic 494 | 51 443 . . Thermal 2217 | . 549 307 1361 Explosive . | . . . . Electromagnetic . | . . . . Impact . | . . . . Slashing . | . . . . Piercing . | . . . . Highest Corruption . | . . . . Average Corruption . | . . . . Corruption Purged . | . . . . Corruption Blocked . | . . . . Overload Shots . | . . . . Overflow Damage . | . . . . Projectiles . | . . . . Explosions . | . . . . Melee . | . . . . Knockbacks . | . . . . Impact . | . . . . Kinetic . | . . . . Secondary . | . . . . Self-Inflicted Damage . | . . . . Shots . | . . . . Rammed . | . . . . Targets Rammed . | . . . . Kicked . | . . . . Crushed . | . . . . Highest Temperature 149 | . 24 72 149 Average Temperature 34 | . 12 30 92 Received Heat Transfer 444 | . 81 36 327 Siege Activations . | . . . . Martial Activations . | . . . . Shielding Activations . | . . . . Robots Disrupted . | . . . . Combat Hostiles . | . . . . Robots Corrupted . | . . . . Combat Hostiles . | . . . . Parts Fried . | . . . . Impact Corruptions . | . . . . Robots Melted 1 | . . . 1 Combat Hostiles 1 | . . . 1 Parts Melted 7 | . 1 1 5 Heat Transferred 7178 | . 1443 962 4773 Parts Sabotaged . | . . . . Parts Stolen . | . . . . Parts Stripped . | . . . . Power Chain Reactions . | . . . . Alert | -11 -10 -10 -10 ------- Run | Yrd Mat Min Sub Maximum Alert Level . | . . . . Low Security (%) 100 | 100 100 100 . Level 1 . | . . . . Level 2 . | . . . . Level 3 . | . . . . Level 4 . | . . . . Level 5 . | . . . . High Security . | . . . . Max Security . | . . . . Peak Influence 57 | 5 57 35 . Initial . | . . . . Average 3 | 1 4 1 . Influence Increases 664 | 10 219 130 305 Destroy 0b10 Robot/C 440 | . 120 100 220 Destroy 0b10 Robot/NC 55 | 10 45 . . Destroy Leader 80 | . 40 30 10 Successful Hack 8 | . 8 . . Disable Machine 4 | . 4 . . Destroy Structure 2 | . 2 . . Lose Combat Pursuer 75 | . . . 75 Influence Decreases 664 | 10 219 130 305 Time Decay 644 | 10 219 130 285 Lost Part 20 | . . . 20 Squads Dispatched 1 | . . 1 . Investigation 1 | . . 1 . Extermination . | . . . . Reinforcement . | . . . . Assault . | . . . . Garrison . | . . . . Intercept . | . . . . Searches Triggered . | . . . . Construction Impeded . | . . . . Haulers Reinforced . | . . . . Active Scanning Responses . | . . . . Cargo Convoy Interrupts . | . . . . Stealth | -11 -10 -10 -10 --------- Run | Yrd Mat Min Sub Distress Signals 1 | . 1 . . Communications Jammed . | . . . . Distress Signals . | . . . . Times Spotted 44 | . 16 6 22 Peak Tracking Total 6 | . 3 2 6 Tactical Retreats 3 | . . . 3 Traps | -11 -10 -10 -10 ------- Run | Yrd Mat Min Sub Traps Triggered 1 | . 1 . . Indirectly . | . . . . Trap Hack Attempts . | . . . . Triggered . | . . . . Disarmed 9 | . 9 . . Reprogrammed . | . . . . Reused . | . . . . Traps Extracted . | . . . . Installed . | . . . . Triggered . | . . . . Machines | -11 -10 -10 -10 ---------- Run | Yrd Mat Min Sub Machines Disabled 2 | . 1 . 1 Max in Single Turn 1 | . 1 . 1 Machines Repaired . | . . . . Machines Dismantled . | . . . . Machines Sabotaged . | . . . . Overloaded Fab Kills . | . . . . Hacking | -11 -10 -10 -10 --------- Run | Yrd Mat Min Sub Machines Accessed 12 | . 10 1 1 Terminals 8 | . 8 . . Fabricators . | . . . . Repair Stations . | . . . . Recycling Units 2 | . 2 . . Scanalyzers . | . . . . Garrison Access . | . . . . Total Hacks 20 | . 18 1 1 Successful 18 | . 16 1 1 Failed 2 | . 2 . . Catastrophic . | . . . . Database Lockouts . | . . . . Manual 10 | . 10 . . Terminals 13 | . 13 . . Fabricators . | . . . . Repair Stations . | . . . . Recycling Units 5 | . 5 . . Scanalyzers . | . . . . Garrison Access . | . . . . Terminal Hacks 6 | . 4 1 1 Robot Analysis 1 | . 1 . . Open Door 1 | . . 1 . Disarm Traps 3 | . 3 . . Proto ID Catalog 1 | . . . 1 Fabricator Hacks . | . . . . Repair Station Hacks . | . . . . Recycling Unit Hacks 2 | . 2 . . Retrieve Components 2 | . 2 . . Scanalyzer . | . . . . Garrison Access Hacks . | . . . . Unauthorized Hacks 10 | . 10 . . Terminals 8 | . 8 . . Botnet 8 | . 8 . . Fabricators . | . . . . Repair Stations . | . . . . Recycling Units 2 | . 2 . . Reject 2 | . 2 . . Scanalyzers . | . . . . Garrison Access . | . . . . Data Cores Recovered . | . . . . Used . | . . . . Hacking Detections 4 | . 4 . . Full Trace Events . | . . . . Feedback Events . | . . . . Feedback Blocked . | . . . . Robot Schematics Acquired . | . . . . Robots Built . | . . . . Authchips . | . . . . Time . | . . . . Total Robot Build Rating . | . . . . Part Schematics Acquired . | . . . . Parts Built . | . . . . Authchips . | . . . . Time . | . . . . Total Part Build Rating . | . . . . Part Studies Acquired . | . . . . Parts Repaired . | . . . . Time . | . . . . Parts Recycled . | . . . . Recycled Matter . | . . . . Retrieved Matter . | . . . . Retrieved Components 4 | . 4 . . Parts Scanalyzed . | . . . . Part Schematics Acquired . | . . . . Parts Damaged . | . . . . Bothacking | -11 -10 -10 -10 ------------ Run | Yrd Mat Min Sub Used RIF Installer . | . . . . Robots Hacked . | . . . . Non-combat . | . . . . Combat . | . . . . Robot Hacks Applied . | . . . . Relay Couplers Released . | . . . . Fabnet Peak Effective % . | . . . . Robots Rewired . | . . . . Allies Hacked . | . . . . Hacks Repelled . | . . . . Allies | -11 -10 -10 -10 -------- Run | Yrd Mat Min Sub Total Allies . | . . . . Largest Group . | . . . . Highest-Rated Group . | . . . . Highest-Rated Ally . | . . . . Total Orders . | . . . . Ally Attacks . | . . . . Total Damage . | . . . . Kills . | . . . . Allies Corrupted . | . . . . Allies Melted . | . . . . Intel | -11 -10 -10 -10 ------- Run | Yrd Mat Min Sub Active Infowar (turns) 6219 | . 1135 1443 3641 Structural 6219 | . 1135 1443 3641 Robot Analysis Total 1 | . 1 . . Derelict Logs Recovered 3 | . . 1 2 Drone Launches . | . . . . Drone Recoveries . | . . . . Exploration | -11 -10 -10 -10 ------------- Run | Yrd Mat Min Sub Turns Passed 6666 | 72 1510 1443 3641 Spaces Moved 2541 | 40 683 572 1246 Core 13 | 13 . . . Treads 2528 | 27 683 572 1246 Legs . | . . . . Wheels . | . . . . Hover . | . . . . Flight . | . . . . Fastest Speed 50 | 50 160 240 240 Average Speed 233 | 124 193 240 255 Slowest Speed 320 | 160 240 240 320 Overloaded Moves . | . . . . Propulsion Burnouts . | . . . . Robots Hopped . | . . . . Potential Cave-ins . | . . . . Cave-ins Triggered . | . . . . Exploration Rate (%) 68 | 4 98 98 74 Regions Visited 3 Branch Regions 2 Pre-discovered Areas 2 | . . 1 1 Known Exits Taken 3 | 1 1 1 . Unknown Exits Taken . | . . . . Scrap Searched 12 | . . 1 11 Spaces Dug . | . . . . Terrain Destroyed . | . . . . Melee . | . . . . Projectile . | . . . . AOE . | . . . . Terrain Rammed . | . . . . Walls Destroyed . | . . . . Machines Disabled . | . . . . Actions | -11 -10 -10 -10 --------- Run | Yrd Mat Min Sub Total 2904 | 55 784 615 1450 Wait 134 | . 31 24 79 Move 2538 | 39 682 571 1246 Hop . | . . . . Pick Up 36 | 7 13 3 13 Fast Attach 1 | . 1 . . Attach 16 | 5 3 1 7 Detach 2 | . 1 1 . Swap 14 | . 5 1 8 Drop 5 | . 3 . 2 Fire 158 | 4 45 14 95 Melee . | . . . . Ram . | . . . . Kick . | . . . . Crush . | . . . . Escape Stasis . | . . . . Rewire . | . . . . Trap . | . . . . Miscellaneous . | . . . . Route ------- -11/Scrapyard -10/Materials (discovered 3 exits: *Mat x2 / *Min) -10/Mines (discovered 3 exits: *Mat x2 / *Sub) -10/Subcaves (discovered 3 exits: *Mat x2 / *Rec) History --------- Turn | Location | Event 8 | -11/Scrapyard | Identified exit to Materials 8 | -11/Scrapyard | Discovered exit to Materials (range 16) 73 | -11/Scrapyard | Entered Materials 73 | -10/Materials | Evolved 1 slot: Utility x1 308 | -10/Materials | Build established: Hacker-Mutant 514 | -10/Materials | Identified exit to Mines 514 | -10/Materials | Discovered exit to Mines (range 14) 663 | -10/Materials | Identified exit to Materials 663 | -10/Materials | Discovered exit to Materials (range 16) 673 | -10/Materials | Derelicts attacked the area 1133 | -10/Materials | Discovered exit to Materials (range 15) 1583 | -10/Materials | Entered Mines 1807 | -10/Mines | Discovered exit to Materials (range 11) 1846 | -10/Mines | Received a Rocket Launcher from a helpful Derelict 2238 | -10/Mines | Found a hidden stash of uninstalled traps 2317 | -10/Mines | Discovered exit to Materials (range 4) 2335 | -10/Mines | Met a Derelict shopkeep closing up shop 3011 | -10/Mines | Identified exit to Subcaves 3011 | -10/Mines | Discovered exit to Subcaves (range 6) 3026 | -10/Mines | Entered Subcaves 3027 | -10/Subcaves | Approached by a straggling Scientist 3077 | -10/Subcaves | Learned location of Storage (-8) 3082 | -10/Subcaves | Shifting Twisted Machinery released Scrap Shield 3185 | -10/Subcaves | Identified exit to Materials 3247 | -10/Subcaves | Disturbed a concealed Subdweller 3285 | -10/Subcaves | Disturbed a concealed Subdweller 3482 | -10/Subcaves | Visited 4L-MR0's lab 3605 | -10/Subcaves | Core integrity fell below 50% 4269 | -10/Subcaves | Shifting Twisted Machinery released Scrap Shield 4515 | -10/Subcaves | Shifting Twisted Machinery released Flamer 4572 | -10/Subcaves | Shifting Twisted Machinery released Battle Rifle 4734 | -10/Subcaves | A swath of the cavern ceiling suddenly collapsed 5123 | -10/Subcaves | Identified exit to Recycling 5123 | -10/Subcaves | Discovered exit to Recycling (range 12) 5540 | -10/Subcaves | Disturbed a concealed Subdweller 5550 | -10/Subcaves | Core integrity fell below 20% 5801 | -10/Subcaves | Discovered exit to Materials (range 5) 6214 | -10/Subcaves | A swath of the cavern ceiling suddenly collapsed 6638 | -10/Subcaves | Shifting Twisted Machinery released Barrage Gun 6667 | -10/Subcaves | Destroyed by 3I-EG5(R) with Subdweller Beam Cannon Last Messages --------------- 05886_ Searching scrap... 05886_ Found Sub. Beam Cannon. 05886_ Found Battle Rifle. 05886_ Found 32 Matter. 05901_ Acquired Battle Rifle. 06083_ Ion Engine destroyed. 06089_ S-10 Pest destroyed. 06095_ G-34 Mercenary destroyed. 06109_ Y-45 Defender suffers critical hit (Burn). 06109_ Heat Sink melted. 06109_ Y-45 Defender destroyed. 06122_ Acquired Heat Sink. 06124_ Acquired 10 matter. A swath of the cavern ceiling suddenly collapses. Barrage Gun falls loose from the Twisted Machinery. 06649_ Z8-VGM(R) emerges from the Twisted Machinery. Map ----- +----------------------------------------------------+ | ??????## #"" ##??????????????????? | | ?????###""""## # ###????????###???????? | | ###??####""##### ###???????? ##???????? | | #######"""###### ## ##??????? ##???????? | | ######"#"##### ## ###?### ? ##???????? | | " "####""##"?## ### ######## ###??????? | | "##""### ###?"## #### #### ## ######???? | | ##### #"##?### ####### ### ######??? | | #####""# ###### ######## ###??? | | #####"#""##### ###???## ??? | | ####"#"""#### ##???##### ??? | | ## ###"""""### ##???####### ??? | | "" ###"# #### ###??????##### ??? | | "" ####"#### ####????????### ??? | | # # ####### ######??????## ### ##??? | | #### ###### ### ##?????### ### ##??? | | ### ###### ##??###### ##??? ##??? | | ##"""" ######### ##?? #??? | | #### ##### #### ????? | | ##### ## ##### ### ???? | | ??####### ### #### ## ???? | | ???############ ### #### ???? | | ???????######### ## #### #??? | | ??????????????### ### ## ## ##??? | | ???????????????##### #####??? | | ????????????????### ###@ R ###????? | | ?????????????????## ? ######R # ????? | | ??????????????????????? #### ????? | | ??????????????????????????#" ### ????? | | ??????????????????????????"""[ ### # ##????? | | ?????????????????????????""""" ##?""####????? | | ????????????????????????? """ ##???###?????? | | ????????????????????????? ### "###??????????? | | ?????????????????????????"#### #"??????????? | | ???????????????????????????### "??????????? | | ?????????????????????????????# "??????????? | | ?????????????????????????????### ##"??????????? | | ?????????????????????????????#### ####??????????? | | ???????????????????????????????#######???????????? | | ????????????????????????????????#####????????????? | | ?????????????????????????????????????????????????? | | ?????????????????????????????????????????????????? | | ?????????????????????????????????????????????????? | | ?????????????????????????????????????????????????? | | ?????????????????????????????????????????????????? | | ?????????????????????????????????????????????????? | | ?????????????????????????????????????????????????? | | ?????????????????????????????????????????????????? | | ?????????????????????????????????????????????????? | | ?????????????????????????????????????????????????? | +----------------------------------------------------+ Best States ------------- Heat Dissipation 35 Energy Generation 10 Energy Capacity 250 Matter Stores 300 Matter Capacity 300 Sight Range 16 Terrain Scan Density 10 Resistance: KI 35 Resistance: TH 35 Resistance: EX 35 Resistance: EM 35 Resistance: I 35 Resistance: S 35 Resistance: P 35 Evasion (%) 50 Recoil Reduction 2 Offensive Hacking 20 Item Schematics ----------------- None Robot Schematics ------------------ None Fabricated ------------ Nothing Repaired ---------- Nothing Studied --------- None Alien Tech Used ----------------- None Achievements -------------- None Challenges ------------ None Game ------ Seed PhasingWeightBlaster Manual? 0 Play Time 00:18:21 Cumulative 311.9 hours Start 2026.01.27 @ 09:03:54 End 2026.01.27 @ 09:21:12 Sessions 1 Manual Loads 0 Difficulty Explorer Special Mode None Game No. 487 Rogue 0 Adventurer 0 Explorer 487 Win Type - Total 0 Types 0/0/0/0/0/0/0/0/0/0 Lore% 77 Gallery% 70 Achievement% 56 Wizard Run 0 Options --------- Layout 1 ASCII 0 Keyboard 0 Movement Mouse Keybinds 1 Fullscreen 1 Font 24/Smallcaps Map View 50x35 Zoom Use 0% Tactical HUD 1 Map Filters NONE Filters NONE Steam 1 RUN: 67e46709-25ab-4bd4-9672-79e6bc716c77